fUSD/lending_fUSD_20240212
["ID","MTS","AMOUNT","RATE_DAILY","PERIOD"]
[313888830,1707769927255,-1002.6138,0.00037999,2]
[313888831,1707769927265,-50000.0,0.00038,8]
[313888832,1707769927274,-150.0,0.00038,117]
[313888833,1707769927283,-100185.37942953,0.00038,2]
[313888834,1707769927293,-4976.92061289,0.00038,4]
[313888835,1707769927303,-300.0,0.00038,39]
[313888836,1707769927312,-155.0,0.00038,4]
[313888837,1707769927321,-161.79524979,0.00038,33]
[313888838,1707769927331,-934.62358261,0.00038,2]
[313888839,1707769927340,-207214.84391817,0.00038,2]
[313888840,1707769927349,-1638241.03165235,0.00038,2]
[313888841,1707769927358,-500.0,0.00038,3]
[313888842,1707769927367,-500.0,0.00038,30]
[313888843,1707769927376,-500.0,0.00038,30]
[313888844,1707769927385,-500.0,0.00038,30]
[313888845,1707769927397,-500.0,0.00038,30]
[313888846,1707769927407,-500.0,0.00038,30]
[313888847,1707769927416,-200.0,0.00038,120]
[313888848,1707769927425,-12586.99999901,0.00038,2]
[313888849,1707769927434,-518.75,0.00038,30]
[313888850,1707769927443,-500.0,0.00038,2]
[313888851,1707769927453,-5000.0,0.00038,3]
[313888852,1707769927463,-155.0,0.00038,7]
[313888853,1707769927474,-150.0,0.00038,9]
[313888854,1707769927484,-150.0,0.00038,9]
[313888855,1707769927493,-150.0,0.00038,9]
[313888856,1707769927503,-150.0,0.00038,9]
[313888857,1707769927512,-150.0,0.00038,9]
[313888858,1707769927521,-150.0,0.00038,9]
[313888859,1707769927530,-150.0,0.00038,9]
[313888860,1707769927539,-150.0,0.00038,9]
[313888861,1707769927548,-150.0,0.00038,9]
[313888862,1707769927557,-150.0,0.00038,9]
[313888863,1707769927566,-150.0,0.00038,9]
[313888864,1707769927576,-150.0,0.00038,9]
[313888865,1707769927589,-150.0,0.00038,9]
[313888866,1707769927598,-150.0,0.00038,9]
[313888867,1707769927608,-150.0,0.00038,9]
[313888868,1707769927618,-150.0,0.00038,9]
[313888869,1707769927628,-150.0,0.00038,9]
[313888870,1707769927640,-187.138762,0.00038,9]
[313888871,1707769927652,-2915.0,0.00038,15]
[313888872,1707769927662,-10000.0,0.00038,15]
[313888873,1707769927672,-10000.0,0.00038,15]
[313888874,1707769927682,-10000.0,0.00038,15]
[313888875,1707769927691,-10000.0,0.00038,15]
[313888876,1707769927701,-10000.0,0.00038,15]
[313888877,1707769927711,-10000.0,0.00038,15]
[313888878,1707769927720,-10000.0,0.00038,15]
[313888879,1707769927730,-10000.0,0.00038,15]
[313888880,1707769927739,-10000.0,0.00038,15]
[313888881,1707769927749,-12360.0,0.00038,15]
[313888882,1707769927758,-2031.0,0.00038,15]
[313888883,1707769927768,-10000.0,0.00038,15]
[313888884,1707769927777,-12121.0,0.00038,15]
[313888885,1707769927787,-10000.0,0.00038,15]
[313888886,1707769927797,-10948.0,0.00038,15]
[313888887,1707769927806,-913.0,0.00038,15]
[313888888,1707769927816,-150.0,0.00038,12]
[313888889,1707769927825,-90372.98946714,0.00038034,20]
[313888890,1707769928451,-473.04997849,0.00038034,20]
[313888891,1707769928470,-587.4769397,0.00038034,20]
[313888892,1707769928489,-368.04046622,0.00038034,20]
[313888893,1707769928509,-801.1516052,0.00038034,20]
[313888894,1707769928527,-940.56083627,0.00038034,20]
[313888895,1707769928545,-311.0,0.00038034,20]
[313888896,1707769928563,-2577.59114036,0.00038034,20]
[313888897,1707769928584,-355.05855364,0.00038034,20]
[313888898,1707769928622,-486.046,0.00033424,2]
[313888899,1707769928692,-13.954,0.00033424,2]
[313888900,1707769928720,-279.7634423,0.00035,2]
[313888901,1707769928736,-582.17636691,0.00035,2]
[313888902,1707769928749,-1653.12848788,0.00035,2]
[313888903,1707769928760,-500.0,0.00035616,2]
[313888904,1707769928769,-3081.19619465,0.00038034,20]
[313888905,1707769928782,-933.35126929,0.00038034,20]
[313888906,1707769928798,-261.355,0.00038034,20]
[313888907,1707769928810,-2355.0,0.00038034,20]
[313888908,1707769928821,-300.0,0.00038034,20]
[313888909,1707769928833,-778.79529046,0.00038034,20]
[313888910,1707769928864,-1017.20870808,0.00034246,2]
[313888911,1707769928876,-1459.8817411,0.00034246,2]
[313888912,1707769930318,-1647.44182646,0.000226,2]
[313888913,1707769930335,-322.92809808,0.00022899,2]
[313888914,1707769930349,-150.0,0.00025119,2]
[313888915,1707769930359,-150.0,0.00025728,2]
[313888916,1707769930369,-261.94246604,0.00026064,2]
[313888917,1707769930378,-150.0,0.00026709,2]
[313888918,1707769930387,-150.0,0.00026761,2]
[313888919,1707769930396,-150.0,0.00027125,2]
[313888920,1707769930406,-150.0,0.00027159,2]
[313888921,1707769930415,-150.0,0.00027241,2]
[313888922,1707769930424,-150.0,0.00027594,2]
[313888923,1707769930434,-150.0,0.0002763,2]
[313888924,1707769930443,-150.0,0.00027745,2]
[313888925,1707769930453,-150.0,0.00027866,2]
[313888926,1707769930463,-150.0,0.00027976,2]
[313888927,1707769930472,-150.0,0.00028042,2]
[313888928,1707769930481,-150.0,0.00028447,2]
[313888929,1707769930490,-150.0,0.00029136,2]
[313888930,1707769930499,-150.0,0.00029327,2]
[313888931,1707769930509,-5738.86713504,0.00029431,6]
[313888932,1707769930518,-150.0,0.00029463,2]
[313888933,1707769930527,-300.0,0.00029643,2]
[313888934,1707769930536,-150.0,0.00029651,2]
[313888935,1707769930545,-150.0,0.00029671,2]
[313888936,1707769930555,-150.0,0.00029678,2]
[313888937,1707769930565,-150.0,0.00029697,2]
[313888938,1707769930577,-150.0,0.00029718,2]
[313888939,1707769930586,-150.0,0.00029742,2]
[313888940,1707769930596,-150.0,0.00029745,2]
[313888941,1707769930606,-150.0,0.00029836,2]
[313888942,1707769930616,-150.0,0.00029845,2]
[313888943,1707769930626,-150.0,0.00029866,2]
[313888944,1707769930635,-150.0,0.0002987,2]
[313888945,1707769930645,-1821.19,0.00032876,2]
[313888946,1707769930654,-485.63028162,0.00032876,2]
[313888947,1707769930666,-1821.19,0.0003315,2]
[313888948,1707769930675,-1821.19,0.00033424,2]
[313888949,1707769930685,-500.0,0.00033698,2]
[313888950,1707769930694,-1821.19,0.00033698,2]
[313888951,1707769930704,-500.0,0.00033972,2]
[313888952,1707769930714,-1821.19,0.00033972,2]
[313888953,1707769930723,-762.33955082,0.00034246,2]
[313888954,1707769930733,-1821.19,0.00034246,2]
[313888955,1707769930742,-3239.43,0.0003452,2]
[313888956,1707769930752,-500.0,0.0003452,2]
[313888957,1707769930762,-1821.19,0.0003452,2]
[313888958,1707769930771,-232.0,0.00034521,2]
[313888959,1707769930781,-500.0,0.00034794,2]
[313888960,1707769930790,-3239.43,0.00034794,2]
[313888961,1707769930799,-1821.19,0.00034794,2]
[313888962,1707769930809,-2515.06829709,0.00035,2]
[313888963,1707769930818,-2515.06829709,0.00035,2]
[313888964,1707769930827,-2515.06829709,0.00035,2]
[313888965,1707769930836,-2515.06829709,0.00035,2]
[313888966,1707769930845,-2515.06829709,0.00035,2]
[313888967,1707769930855,-170.04,0.00035068,2]
[313888968,1707769930867,-3239.43,0.00035068,2]
[313888969,1707769930877,-1821.19,0.00035068,2]
[313888970,1707769930886,-3239.43,0.00035342,2]
[313888971,1707769930896,-1821.19,0.00035342,2]
[313888972,1707769930905,-500.0,0.00035616,2]
[313888973,1707769930914,-500.0,0.00035616,2]
[313888974,1707769930924,-500.0,0.00035616,2]
[313888975,1707769930934,-500.0,0.00035616,2]
[313888976,1707769930943,-500.0,0.00035616,2]
[313888977,1707769930953,-500.0,0.00035616,2]
[313888978,1707769930963,-500.0,0.00035616,2]
[313888979,1707769930972,-500.0,0.00035616,2]
[313888980,1707769930982,-500.0,0.00035616,2]
[313888981,1707769930991,-3239.43,0.00035616,2]
[313888982,1707769931001,-2397.55,0.0003589,2]
[313888983,1707769931010,-3239.43,0.0003589,2]
[313888984,1707769931019,-2397.55,0.00036164,2]
[313888985,1707769931028,-236.0,0.00036247,2]
[313888986,1707769931037,-2397.55,0.00036438,2]
[313888987,1707769931047,-2397.55,0.00036712,2]
[313888988,1707769931056,-2397.55,0.00036986,2]
[313888989,1707769931066,-573.56,0.0003726,2]
[313888990,1707769931075,-2397.55,0.0003726,2]
[313888991,1707769931083,-573.56,0.00037534,2]
[313888992,1707769931093,-2397.55,0.00037534,2]
[313888993,1707769931102,-573.56,0.00037808,2]
[313888994,1707769931111,-2397.55,0.00037808,2]
[313888995,1707769931121,-17651.38325858,0.00038034,20]
[313888996,1707769931130,-1000.0,0.00038049,10]
[313888997,1707769931140,-150.0,0.00038068,2]
[313888998,1707769931150,-520.01,0.00038082,2]
[313888999,1707769931159,-966.32,0.00038082,2]
[313889000,1707769931169,-385.96800838,0.00038082,16]
[313889001,1707769931178,-604.2,0.00038082,2]
[313889002,1707769931188,-807.54,0.00038082,2]
[313889003,1707769931199,-509.91,0.00038082,2]
[313889004,1707769931213,-500.0,0.00038082,2]
[313889005,1707769931223,-500.22,0.00038082,2]
[313889006,1707769931233,-580.77,0.00038082,2]
[313889007,1707769931245,-500.0,0.00038082,2]
[313889008,1707769931254,-952.06,0.00038082,2]
[313889009,1707769931264,-500.0,0.00038082,2]
[313889010,1707769931274,-538.47,0.00038082,2]
[313889011,1707769931283,-1235.07,0.00038082,2]
[313889012,1707769931293,-500.0,0.00038082,2]
[313889013,1707769931302,-1080.75,0.00038082,2]
[313889014,1707769931311,-728.15,0.00038082,2]
[313889015,1707769931321,-796.14,0.00038082,2]
[313889016,1707769931330,-588.98,0.00038082,2]
[313889017,1707769931341,-5409.76,0.00038082,2]
[313889018,1707769931351,-500.0,0.00038082,2]
[313889019,1707769931360,-1331.32,0.00038082,2]
[313889020,1707769931370,-917.05,0.00038082,2]
[313889021,1707769931379,-9977.66,0.00038082,2]
[313889022,1707769931388,-500.0,0.00038082,2]
[313889023,1707769931397,-4143.77,0.00038082,2]
[313889024,1707769931407,-5964.37,0.00038082,2]
[313889025,1707769931416,-695.09,0.00038082,2]
[313889026,1707769931427,-561.48,0.00038082,2]
[313889027,1707769931436,-843.63,0.00038082,2]
[313889028,1707769931445,-984.81,0.00038082,2]
[313889029,1707769931455,-1158.95,0.00038082,2]
[313889030,1707769931465,-500.0,0.00038082,2]
[313889031,1707769931475,-500.0,0.00038082,2]
[313889032,1707769931485,-2406.89,0.00038082,2]
[313889033,1707769931494,-578.56,0.00038082,2]
[313889034,1707769931503,-819.76,0.00038082,2]
[313889035,1707769931512,-1375.77,0.00038082,2]
[313889036,1707769931520,-4244.4,0.00038082,2]
[313889037,1707769931529,-500.0,0.00038082,2]
[313889038,1707769931538,-157.43048263,0.00038082,2]
[313889039,1707769931547,-846.93,0.00038082,2]
[313889040,1707769931556,-728.9,0.00038082,2]
[313889041,1707769931565,-616.73,0.00038082,2]
[313889042,1707769931578,-500.0,0.00038082,2]
[313889043,1707769931587,-560.54,0.00038082,2]
[313889044,1707769931596,-1820.56,0.00038082,2]
[313889045,1707769931606,-743.91,0.00038082,2]
[313889046,1707769931616,-500.0,0.00038082,2]
[313889047,1707769931625,-735.16,0.00038082,2]
[313889048,1707769931634,-1028.39,0.00038082,2]
[313889049,1707769931643,-1049.27,0.00038082,2]
[313889050,1707769931653,-4338.57,0.00038082,2]
[313889051,1707769931663,-2013.56,0.00038082,2]
[313889052,1707769931673,-1012.67,0.00038082,2]
[313889053,1707769931682,-1445.06,0.00038082,2]
[313889054,1707769931700,-1677.14,0.00038082,2]
[313889055,1707769931712,-951.75,0.00038082,2]
[313889056,1707769931722,-1575.25,0.00038082,2]
[313889057,1707769931732,-1311.14,0.00038082,2]
[313889058,1707769931741,-1386.13,0.00038082,2]
[313889059,1707769931751,-893.85,0.00038082,2]
[313889060,1707769931760,-1280.91,0.00038082,2]
[313889061,1707769931769,-500.0,0.00038082,2]
[313889062,1707769931779,-7777.87,0.00038082,2]
[313889063,1707769931789,-501.05,0.00038082,2]
[313889064,1707769931798,-502.28,0.00038082,2]
[313889065,1707769931808,-814.8,0.00038082,2]
[313889066,1707769931818,-961.32,0.00038082,2]
[313889067,1707769931827,-177.46707434,0.00038082,2]
[313889068,1707769931837,-551.08,0.00038082,2]
[313889069,1707769931846,-812.86,0.00038082,2]
[313889070,1707769931856,-512.59,0.00038082,2]
[313889071,1707769931865,-1261.01,0.00038082,2]
[313889072,1707769931875,-5713.47,0.00038082,2]
[313889073,1707769931884,-5782.92,0.00038082,2]
[313889074,1707769931894,-3592.16,0.00038082,2]
[313889075,1707769931904,-1417.96,0.00038082,2]
[313889076,1707769931913,-1507.74,0.00038082,2]
[313889077,1707769931923,-500.0,0.00038082,2]
[313889078,1707769931933,-2719.11,0.00038082,2]
[313889079,1707769931945,-735.15,0.00038082,2]
[313889080,1707769931955,-1563.36,0.00038082,2]
[313889081,1707769931966,-1284.95,0.00038082,2]
[313889082,1707769931975,-953.13,0.00038082,2]
[313889083,1707769931985,-705.93,0.00038082,2]
[313889084,1707769931995,-503.01,0.00038082,2]
[313889085,1707769932005,-2474.64,0.00038082,2]
[313889086,1707769932015,-2229.26,0.00038082,2]
[313889087,1707769932025,-1347.04,0.00038082,2]
[313889088,1707769932034,-500.0,0.00038082,2]
[313889089,1707769932044,-1299.67,0.00038082,2]
[313889090,1707769932054,-1798.72,0.00038082,2]
[313889091,1707769932063,-1180.11,0.00038082,2]
[313889092,1707769932072,-2115.54,0.00038082,2]
[313889093,1707769932081,-513.48,0.00038082,2]
[313889094,1707769932091,-500.0,0.00038082,2]
[313889095,1707769932100,-3264.57,0.00038082,2]
[313889096,1707769932110,-511.99,0.00038082,2]
[313889097,1707769932119,-3140.53,0.00038082,2]
[313889098,1707769932128,-4051.49,0.00038082,2]
[313889099,1707769932138,-1799.2,0.00038082,2]
[313889100,1707769932147,-1680.38,0.00038082,2]
[313889101,1707769932156,-978.39,0.00038082,2]
[313889102,1707769932166,-522.7,0.00038082,2]
[313889103,1707769932175,-4240.45,0.00038082,2]
[313889104,1707769932185,-573.56,0.00038082,2]
[313889105,1707769932194,-2397.55,0.00038082,2]
[313889106,1707769932204,-262.0,0.000381,30]
[313889107,1707769932214,-1000.0,0.00038117,10]
[313889108,1707769932224,-1000.0,0.00038133,10]
[313889109,1707769932233,-455.14368552,0.00038187,4]
[313889110,1707769932242,-200.0,0.000382,13]
[313889111,1707769932252,-200.0,0.000382,12]
[313889112,1707769932261,-250.0,0.000382,4]
[313889113,1707769932270,-250.0,0.000382,4]
[313889114,1707769932279,-250.0,0.000382,4]
[313889115,1707769932289,-444.4,0.000382,4]
[313889116,1707769932298,-182858.20845486,0.000382,2]
[313889117,1707769932307,-150.87693021,0.000382,2]
[313889118,1707769932317,-450.0,0.000382,27]
[313889119,1707769932326,-237.999523,0.000382,8]
[313889120,1707769932336,-237.999524,0.000382,8]
[313889121,1707769932346,-237.999524,0.000382,8]
[313889122,1707769932355,-1987.288625,0.000382,8]
[313889123,1707769932365,-1987.288625,0.000382,8]
[313889124,1707769932375,-1987.288625,0.000382,8]
[313889125,1707769932385,-10921.31,0.00038219,2]
[313889126,1707769932394,-475.01,0.0003822,2]
[313889127,1707769932403,-208.0,0.0003824,2]
[313889128,1707769932413,-164.10784479,0.00038243,7]
[313889129,1707769932422,-154.09050948,0.00038253,7]
[313889130,1707769932432,-5977.125637,0.00038262,2]
[313889131,1707769932441,-1149.307006,0.00038262,2]
[313889132,1707769932450,-278.190001,0.00038262,2]
[313889133,1707769932459,-5428.373395,0.00038262,2]
[313889134,1707769932470,-326.55931,0.00038262,2]
[313889135,1707769932479,-400.0,0.0003827,2]
[313889136,1707769932489,-174.74707966,0.0003827,7]
[313889137,1707769932500,-1000.0,0.00038277,30]
[313889138,1707769932510,-1000.0,0.00038277,30]
[313889139,1707769932519,-4867.69423962,0.00038278,15]
[313889140,1707769932529,-1050.7443681,0.00038278,15]
[313889141,1707769932538,-3799.04240058,0.00038278,15]
[313889142,1707769932548,-4500.68148576,0.00038278,15]
[313889143,1707769932557,-3353.18317288,0.00038278,15]
[313889144,1707769932566,-19384.20719144,0.00038278,15]
[313889145,1707769932575,-7783.59023906,0.00038278,15]
[313889146,1707769932588,-154.09050948,0.00038285,7]
[313889147,1707769932598,-154.15911356,0.00038285,7]
[313889148,1707769932607,-150.97972918,0.00038286,7]
[313889149,1707769932617,-262.0,0.000383,30]
[313889150,1707769932626,-1200.0,0.000383,30]
[313889151,1707769932636,-525.1644,0.000383,2]
[313889152,1707769932645,-1282.5827,0.000383,2]
[313889153,1707769932654,-154.21633961,0.00038313,7]
[313889154,1707769932665,-154.15911356,0.00038313,7]
[313889155,1707769932675,-151.24267461,0.00038322,7]
[313889156,1707769932685,-155.7751642,0.00038325,30]
[313889157,1707769932694,-150.58750847,0.0003835,7]
[313889158,1707769932703,-10000.0,0.00038352,2]
[313889159,1707769932714,-625.18,0.00038356,2]
[313889160,1707769932723,-1250.0,0.00038356,2]
[313889161,1707769932733,-966.32,0.00038356,7]
[313889162,1707769932742,-807.54,0.00038356,7]
[313889163,1707769932752,-509.91,0.00038356,7]
[313889164,1707769932761,-500.0,0.00038356,7]
[313889165,1707769932771,-500.22,0.00038356,7]
[313889166,1707769932781,-580.77,0.00038356,7]
[313889167,1707769932791,-582.08066433,0.00038356,7]
[313889168,1707769932801,-952.06,0.00038356,7]
[313889169,1707769932811,-488.0,0.00038356,7]
[313889170,1707769932820,-538.47,0.00038356,7]
[313889171,1707769932830,-1235.07,0.00038356,7]
[313889172,1707769932841,-500.0,0.00038356,7]
[313889173,1707769932851,-1080.75,0.00038356,7]
[313889174,1707769932860,-728.15,0.00038356,7]
[313889175,1707769932870,-796.14,0.00038356,7]
[313889176,1707769932880,-588.98,0.00038356,7]
[313889177,1707769932889,-5000.0,0.00038356,30]
[313889178,1707769932898,-5000.0,0.00038356,30]
[313889179,1707769932908,-5000.0,0.00038356,30]
[313889180,1707769932917,-3918.38846785,0.00038356,30]
[313889181,1707769932936,-1081.61153215,0.00038356,30]
[313889182,1707769932945,-5000.0,0.00038356,30]
[313889183,1707769932955,-3416.49661201,0.00038356,30]
[313889184,1707769932977,-1583.50338799,0.00038356,30]
[313889185,1707769932986,-655.80378436,0.00038356,30]
[313889186,1707769932999,-782.95171002,0.00038356,30]
[313889187,1707769933011,-1362.91483467,0.00038356,30]
[313889188,1707769933033,-224.17607266,0.00038356,30]
[313889189,1707769933044,-4592.66133332,0.00038356,7]
[313889190,1707769933057,-817.09866668,0.00038356,7]
[313889191,1707769933067,-500.0,0.00038356,7]
[313889192,1707769933077,-1331.32,0.00038356,7]
[313889193,1707769933087,-917.05,0.00038356,7]
[313889194,1707769933097,-500.0,0.00038356,7]
[313889195,1707769933106,-1849.54813364,0.00038356,7]
[313889196,1707769933118,-274.27926531,0.00038356,7]
[313889197,1707769933159,-0.01064255,0.00038356,7]
[313889198,1707769934688,-1231.83765556,0.00022899,2]
[313889199,1707769934699,-243.98820819,0.00022899,2]
[313889200,1707769934709,-1266.33797155,0.00022899,2]
[313889201,1707769934720,-109.31525728,0.00025118,2]
[313889202,1707769934734,-45.68474272,0.00025118,2]
[313889203,1707769934744,-533.66816842,0.00025118,2]
[313889204,1707769934754,-150.0,0.00029942,2]
[313889205,1707769934764,-1524.80800395,0.00029999,2]
[313889206,1707769934773,-539.57,0.00030448,2]
[313889207,1707769934782,-234.625,0.00030448,2]
[313889208,1707769934792,-180.0,0.00031644,2]
[313889209,1707769934801,-151.0,0.00032877,7]
[313889210,1707769934811,-216.0,0.00033448,2]
[313889211,1707769934820,-500.0,0.00035616,2]
[313889212,1707769934830,-500.0,0.00035616,2]
[313889213,1707769934839,-500.0,0.00035616,2]
[313889214,1707769934848,-171.6320704,0.00035616,2]
[313889215,1707770135841,208.0,0.00021962,2]
[313889216,1707770751274,173.94,0.00019636,2]
[313889217,1707770772151,-155.0,0.00022552,2]
[313889218,1707770772177,-155.0,0.00022553,2]
[313889219,1707770772197,-155.0,0.00022554,2]
[313889220,1707770772220,-248.02594869,0.00022556,2]
[313889221,1707770772241,-713.01,0.00022708,2]
[313889222,1707770772263,-716.28,0.00022771,2]
[313889223,1707770772284,-713.36,0.00022871,2]
[313889224,1707770772306,-717.47,0.0002293,2]
[313889225,1707770772327,-150.0,0.00023,2]
[313889226,1707770822233,172.5,0.00023,2]
[313889235,1707771031745,-737.03,0.00023099,2]
[313889236,1707771031755,-738.19,0.00023392,2]
[313889237,1707771031764,-212.0,0.00023505,2]
[313889238,1707771031772,-738.31,0.00023905,2]
[313889239,1707771031781,-363.31,0.00024136,2]
[313889240,1707771031791,-238.52,0.00024737,4]
[313889241,1707771031800,-1250.0,0.00025,3]
[313889242,1707771031809,-1256.25370781,0.00025,2]
[313889243,1707771031818,-199.52500903,0.00025116,2]
[313889244,1707771031827,-235.14789827,0.00025117,2]
[313889245,1707771031836,-1115.08383788,0.00025117,2]
[313889246,1707771031845,-212.0,0.00025149,2]
[313889247,1707771031854,-200.0,0.00025409,2]
[313889248,1707771031862,-250.0,0.00025753,2]
[313889249,1707771031872,-287.56,0.00025783,2]
[313889250,1707771031881,-500.0,0.0002579,2]
[313889251,1707771031890,-298.0,0.00025872,3]
[313889252,1707771031899,-158.55,0.00026169,2]
[313889253,1707771031908,-4240.07,0.00026358,2]
[313889254,1707771031917,-363.31,0.000264,2]
[313889255,1707771031928,-1030.99523291,0.00026712,2]
[313889256,1707771031939,-212.0,0.00026793,2]
[313889257,1707771031949,-1300.0,0.00027,3]
[313889258,1707771031958,-1000.0,0.000274,2]
[313889259,1707771031967,-158.55,0.00027533,2]
[313889260,1707771031977,-163.92950636,0.000279,2]
[313889261,1707771031986,-159.08321211,0.000279,2]
[313889262,1707771031995,-366.53450788,0.000279,2]
[313889263,1707771032004,-172.21631544,0.00027997,2]
[313889264,1707771032014,-213.8274066,0.00027997,2]
[313889265,1707771032025,-188.42881046,0.00027998,2]
[313889266,1707771032034,-203.0476169,0.00027998,2]
[313889267,1707771032043,-216681.70169656,0.00027999,2]
[313889270,1707771032056,-662.815,0.00027999,2]
[313889272,1707771032071,-250.0,0.00027999,2]
[313889274,1707771032082,-1556.12664025,0.00027999,2]
[313889277,1707771032093,-590.87874065,0.00027999,2]
[313889280,1707771032113,-4952.25460587,0.00027999,2]
[313889284,1707771032158,-322113.15789806,0.00027999,2]
[313889300,1707771037714,-250.0,0.00025871,2]
[313889301,1707771037723,-1150.0,0.00027999,2]
[313889302,1707771037735,-402.12299413,0.00027999,2]
[313889303,1707771037775,-817.75096525,0.00027999,2]
[313889304,1707771037786,-1001.51444388,0.00027999,2]
[313889305,1707771037838,-1576.10650313,0.00027999,2]
[313889306,1707771037895,-330.96,0.00027999,2]
[313889312,1707771041101,-1287.3598939,0.00027999,2]
[313889313,1707771041113,-2621.375104,0.00027999,2]
[313889314,1707771041125,-920.50999998,0.00027999,2]
[313889315,1707771041136,-442.56499962,0.00027999,2]
[313889316,1707771041267,-553.05,0.00027999,2]
[313889318,1707771041280,-30015.80833154,0.00027999,2]
[313889334,1707771042753,-1755.215,0.00027999,2]
[313889335,1707771042812,-5503.99600001,0.00027999,2]
[313889337,1707771042824,-820.69064091,0.00027999,2]
[313889339,1707771042836,-3651.45934165,0.00027999,2]
[313889342,1707771042848,-2840.0310199,0.00027999,2]
[313889344,1707771042860,-1203.09698426,0.00027999,2]
[313889346,1707771042871,-5017.31699996,0.00027999,2]
[313889349,1707771042927,-7804.56000681,0.00027999,2]
[313889350,1707771042936,-160797.69632885,0.00028,2]
[313889351,1707771043001,-14571.94254265,0.00028,2]
[313889352,1707771043769,-1256.25370781,0.00027998,2]
[313889353,1707771043778,-505.21068171,0.00028,2]
[313889354,1707771043790,-1286.30271491,0.00028,2]
[313889355,1707771043799,-1722.41825492,0.00028,4]
[313889356,1707771043811,-255.77411287,0.00028,4]
[313889357,1707771043823,-5375.18025005,0.00028,4]
[313889359,1707771043834,-812.3948038,0.00028,4]
[313889361,1707771043845,-921.01,0.00028,4]
[313889572,1707771045740,-2784.60602666,0.00028,4]
[313889585,1707771045799,-608.35712949,0.00028,4]
[313889588,1707771045811,-9181.16293119,0.00028,4]
[313889601,1707771045882,-25060.08064795,0.00028,4]
[313889604,1707771045898,-277.00956143,0.00028,4]
[313889642,1707771046074,-4408.25391082,0.00028,4]
[313889645,1707771046087,-449.982,0.00028,4]
[313889658,1707771046140,-313.03686553,0.00028,4]
[313889675,1707771046220,-63342.80103792,0.00028,4]
[313889678,1707771046230,-1000.0,0.00028094,2]
[313889681,1707771046239,-212.0,0.00028437,2]
[313889684,1707771046249,-627.01162162,0.00028496,2]
[313889687,1707771046258,-363.31,0.00028664,2]
[313889690,1707771046267,-168.56109817,0.00028667,2]
[313889693,1707771046276,-2000.0,0.000288,3]
[313889696,1707771046286,-155.0,0.00028835,2]
[313889699,1707771046295,-1350.0,0.00029,3]
[313889701,1707771046305,-159.08321204,0.00029037,2]
[313889704,1707771046314,-500.0,0.00029586,2]
[313889707,1707771046323,-283.83163888,0.00029683,2]
[313889710,1707771046332,-162.94091992,0.00029683,2]
[313889713,1707771046342,-191.68223761,0.00029684,2]
[313889715,1707771046351,-527.40738923,0.00029684,2]
[313889718,1707771046359,-1054.93137221,0.00029684,2]
[313889721,1707771046369,-1187.4275,0.00029717,2]
[313889724,1707771046378,-22297.39962981,0.000298,2]
[313889727,1707771046387,-176.98585251,0.000298,2]
[313889730,1707771046396,-22297.39962978,0.00029818,2]
[313889733,1707771046405,-22297.39962978,0.00029835,2]
[313889736,1707771046413,-22297.39962978,0.00029853,2]
[313889739,1707771046423,-4282.31746697,0.00029867,2]
[313889741,1707771046432,-218.2736471,0.00029867,2]
[313889744,1707771046441,-155.44252608,0.00029868,2]